fUSD/lending_fUSD_20240403
["ID","MTS","AMOUNT","RATE_DAILY","PERIOD"]
[321431180,1712184656717,-509.76848421,0.00054794,120]
[321431181,1712184656729,-500.0,0.00054794,120]
[321431182,1712184656739,-562.39,0.00054794,120]
[321431183,1712184656750,-2259.93,0.00054794,120]
[321431184,1712184656760,-500.0,0.00054794,120]
[321431185,1712184656771,-500.0,0.00054794,120]
[321431186,1712184656781,-510.06673725,0.00054794,120]
[321431187,1712184656792,-1074.17,0.00054794,120]
[321431188,1712184656802,-5192.65,0.00054794,120]
[321431189,1712184656814,-5268.95,0.00054794,120]
[321431190,1712184656824,-500.0,0.00054794,120]
[321431191,1712184656834,-1596.27,0.00054794,120]
[321431192,1712184656843,-500.0,0.00054794,120]
[321431193,1712184656853,-500.0,0.00054794,120]
[321431194,1712184656864,-727.71,0.00054794,120]
[321431195,1712184656875,-753.5,0.00054794,120]
[321431196,1712184656887,-3139.95,0.00054794,120]
[321431197,1712184656896,-519.57031299,0.00054794,120]
[321431198,1712184656906,-1315.91,0.00054794,120]
[321431199,1712184656917,-1928.79,0.00054794,120]
[321431200,1712184656926,-500.0,0.00054794,120]
[321431201,1712184656937,-500.0,0.00054794,120]
[321431202,1712184656949,-510.27749448,0.00054794,120]
[321431203,1712184656960,-500.0,0.00054794,120]
[321431204,1712184656970,-2861.7,0.00054794,120]
[321431205,1712184656980,-516.03922594,0.00054794,120]
[321431206,1712184656991,-500.0,0.00054794,120]
[321431207,1712184657001,-500.0,0.00054794,120]
[321431208,1712184657012,-988.36,0.00054794,120]
[321431209,1712184657022,-507.1740089,0.00054794,120]
[321431210,1712184657032,-504.19529844,0.00054794,120]
[321431211,1712184657043,-500.0,0.00054794,120]
[321431212,1712184657053,-500.0,0.00054794,120]
[321431213,1712184657063,-15447.35,0.00054794,120]
[321431214,1712184657074,-500.0,0.00054794,120]
[321431215,1712184657085,-1479.72,0.00054794,120]
[321431216,1712184657095,-3614.27,0.00054794,120]
[321431217,1712184657105,-1853.14,0.00054794,120]
[321431218,1712184657116,-50175.87,0.00054794,120]
[321431219,1712184657126,-500.0,0.00054794,120]
[321431220,1712184657135,-593.44,0.00054794,120]
[321431221,1712184657145,-8272.45,0.00054794,120]
[321431222,1712184657155,-500.0,0.00054794,120]
[321431223,1712184657165,-500.0,0.00054794,120]
[321431224,1712184657175,-1273.38,0.00054794,120]
[321431225,1712184657185,-524.79127473,0.00054794,120]
[321431226,1712184657195,-500.0,0.00054794,120]
[321431227,1712184657205,-500.0,0.00054794,120]
[321431228,1712184657215,-500.0,0.00054794,120]
[321431229,1712184657224,-518.90113583,0.00054794,120]
[321431230,1712184657234,-500.0,0.00054794,120]
[321431231,1712184657244,-500.0,0.00054794,120]
[321431232,1712184657254,-2542.55,0.00054794,120]
[321431233,1712184657264,-504.73249031,0.00054794,120]
[321431234,1712184657274,-513.17087907,0.00054794,120]
[321431235,1712184657286,-525.51817211,0.00054794,120]
[321431236,1712184657295,-505.01692492,0.00054794,120]
[321431237,1712184657306,-500.0,0.00054794,120]
[321431238,1712184657315,-500.0,0.00054794,120]
[321431239,1712184657326,-500.0,0.00054794,120]
[321431240,1712184657335,-2232.8,0.00054794,120]
[321431241,1712184657345,-1094.92,0.00054794,120]
[321431242,1712184657356,-511.28656155,0.00054794,120]
[321431243,1712184657366,-2830.73,0.00054794,120]
[321431244,1712184657376,-2387.44,0.00054794,120]
[321431245,1712184657385,-500.0,0.00054794,120]
[321431246,1712184657395,-500.0,0.00054794,120]
[321431247,1712184657406,-500.0,0.00054794,120]
[321431248,1712184657623,-833.32,0.00054794,120]
[321431249,1712184657633,-564.29,0.00054794,120]
[321431250,1712184657643,-500.0,0.00054794,120]
[321431251,1712184657653,-500.0,0.00054794,120]
[321431252,1712184657662,-500.0,0.00054794,120]
[321431253,1712184657672,-500.0,0.00054794,120]
[321431254,1712184657681,-500.0,0.00054794,120]
[321431255,1712184657691,-500.0,0.00054794,120]
[321431256,1712184657700,-571.59,0.00054794,120]
[321431257,1712184657710,-500.0,0.00054794,120]
[321431258,1712184657719,-1166.59,0.00054794,120]
[321431259,1712184657728,-500.0,0.00054794,120]
[321431260,1712184657738,-2171.67,0.00054794,120]
[321431261,1712184657747,-500.0,0.00054794,120]
[321431262,1712184657756,-500.0,0.00054794,120]
[321431263,1712184657765,-1571.1,0.00054794,120]
[321431264,1712184657774,-653.27,0.00054794,120]
[321431265,1712184657783,-500.0,0.00054794,120]
[321431266,1712184657793,-500.0,0.00054794,120]
[321431267,1712184657802,-3113.62,0.00054794,120]
[321431268,1712184657811,-506.52811703,0.00054794,120]
[321431269,1712184657820,-500.0,0.00054794,120]
[321431270,1712184657830,-901.12,0.00054794,120]
[321431271,1712184657840,-831.31,0.00054794,120]
[321431272,1712184657849,-4823.72,0.00054794,120]
[321431273,1712184657859,-2281.29,0.00054794,120]
[321431274,1712184657869,-571.26,0.00054794,120]
[321431275,1712184657878,-520.73032224,0.00054794,120]
[321431276,1712184657888,-503.92121871,0.00054794,120]
[321431277,1712184657897,-500.0,0.00054794,120]
[321431278,1712184657907,-500.0,0.00054794,120]
[321431279,1712184657917,-500.0,0.00054794,120]
[321431280,1712184657926,-2341.82,0.00054794,120]
[321431281,1712184657935,-500.0,0.00054794,120]
[321431282,1712184657945,-616.93,0.00054794,120]
[321431283,1712184657954,-500.0,0.00054794,120]
[321431284,1712184657962,-500.0,0.00054794,120]
[321431285,1712184657972,-500.0,0.00054794,120]
[321431286,1712184657981,-2671.64,0.00054794,120]
[321431287,1712184657991,-500.0,0.00054794,120]
[321431288,1712184658000,-1000.0,0.00054794,14]
[321431289,1712184658009,-635.83,0.00054794,120]
[321431290,1712184658018,-13561.16,0.00054794,120]
[321431291,1712184658027,-500.0,0.00054794,120]
[321431292,1712184658037,-2693.45,0.00054794,120]
[321431293,1712184658046,-500.0,0.00054794,120]
[321431294,1712184658056,-512.98882508,0.00054794,120]
[321431295,1712184658066,-500.0,0.00054794,120]
[321431296,1712184658075,-990.77,0.00054794,120]
[321431297,1712184658085,-1166.4,0.00054794,120]
[321431298,1712184658094,-6476.21,0.00054794,120]
[321431299,1712184658104,-531.01,0.00054794,120]
[321431300,1712184658113,-500.0,0.00054794,120]
[321431301,1712184658123,-500.0,0.00054794,120]
[321431302,1712184658133,-516.89928555,0.00054794,120]
[321431303,1712184658142,-500.0,0.00054794,120]
[321431304,1712184658151,-500.0,0.00054794,120]
[321431305,1712184658164,-1322.23,0.00054794,120]
[321431306,1712184658173,-1624.59,0.00054794,120]
[321431307,1712184658183,-500.0,0.00054794,120]
[321431308,1712184658193,-3687.58,0.00054794,120]
[321431309,1712184658203,-500.0,0.00054794,120]
[321431310,1712184658212,-2307.59,0.00054794,120]
[321431311,1712184658221,-500.0,0.00054794,120]
[321431312,1712184658230,-500.0,0.00054794,120]
[321431313,1712184658239,-500.0,0.00054794,120]
[321431314,1712184658249,-1218.61,0.00054794,120]
[321431315,1712184658258,-18725.44,0.00054794,120]
[321431316,1712184658268,-500.0,0.00054794,120]
[321431317,1712184658282,-500.0,0.00054794,120]
[321431318,1712184658295,-500.0,0.00054794,120]
[321431319,1712184658305,-500.0,0.00054794,120]
[321431320,1712184658314,-508.13503615,0.00054794,120]
[321431321,1712184658324,-844.09,0.00054794,120]
[321431322,1712184658336,-500.0,0.00054794,120]
[321431323,1712184658345,-2888.83,0.00054794,120]
[321431324,1712184658355,-500.0,0.00054794,120]
[321431325,1712184658366,-500.0,0.00054794,120]
[321431326,1712184658376,-500.0,0.00054794,120]
[321431327,1712184658387,-500.0,0.00054794,120]
[321431328,1712184658397,-500.0,0.00054794,120]
[321431329,1712184658408,-500.0,0.00054794,120]
[321431330,1712184658418,-5631.75,0.00054794,120]
[321431331,1712184658428,-500.0,0.00054794,120]
[321431332,1712184658437,-5631.75,0.00054794,120]
[321431333,1712184658447,-234.53035963,0.00054794,120]
[321431334,1712184658456,-517.51838716,0.00054794,120]
[321431335,1712184658466,-5631.75,0.00054794,120]
[321431336,1712184658475,-5631.75,0.00054794,120]
[321431337,1712184658484,-5631.75,0.00054794,120]
[321431338,1712184658494,-5631.75,0.00054794,120]
[321431339,1712184658504,-522.28348477,0.00054794,120]
[321431340,1712184658513,-5631.75,0.00054794,120]
[321431341,1712184658523,-5631.75,0.00054794,120]
[321431342,1712184658532,-500.0,0.00054794,120]
[321431343,1712184658542,-5631.75,0.00054794,120]
[321431344,1712184658552,-531.23,0.00054794,120]
[321431345,1712184658561,-500.0,0.00054794,120]
[321431346,1712184658571,-1000.0,0.00054794,120]
[321431347,1712184658581,-570.91680593,0.00054794,120]
[321431348,1712184658591,-5631.75,0.00054794,120]
[321431349,1712184658600,-5631.75,0.00054794,120]
[321431350,1712184658610,-677.74,0.00054794,120]
[321431351,1712184658620,-5631.75,0.00054794,120]
[321431352,1712184658630,-5631.75,0.00054794,120]
[321431353,1712184658640,-5631.75,0.00054794,120]
[321431354,1712184658650,-5631.75,0.00054794,120]
[321431355,1712184658668,-500.0,0.00054794,120]
[321431356,1712184658678,-500.0,0.00054794,120]
[321431357,1712184658688,-5631.75,0.00054794,120]
[321431358,1712184658699,-2618.75,0.00054794,120]
[321431359,1712184658708,-5631.75,0.00054794,120]
[321431360,1712184658718,-5631.75,0.00054794,120]
[321431361,1712184658727,-5631.75,0.00054794,120]
[321431362,1712184658736,-1035.92,0.00054794,120]
[321431363,1712184658746,-2726.28,0.00054794,120]
[321431364,1712184658755,-5631.75,0.00054794,120]
[321431365,1712184658764,-585.83,0.00054794,120]
[321431366,1712184658773,-5631.75,0.00054794,120]
[321431367,1712184658783,-5631.75,0.00054794,120]
[321431368,1712184658793,-500.0,0.00054794,120]
[321431369,1712184658802,-5631.75,0.00054794,120]
[321431370,1712184658811,-1839.73,0.00054794,120]
[321431371,1712184658821,-503.94151964,0.00054794,120]
[321431372,1712184658830,-5631.85090655,0.00054794,120]
[321431373,1712184658839,-1519.81,0.00054794,120]
[321431374,1712184658849,-500.0,0.00054794,120]
[321431375,1712184658859,-500.0,0.00054794,120]
[321431376,1712184658868,-500.0,0.00054794,120]
[321431377,1712184658877,-40194.92,0.00054794,120]
[321431378,1712184658887,-500.0,0.00054794,120]
[321431379,1712184658897,-5781.72,0.00054794,120]
[321431380,1712184658912,-4806.56,0.00054794,120]
[321431381,1712184658922,-500.0,0.00054794,120]
[321431382,1712184658931,-888.0,0.00054794,120]
[321431383,1712184658941,-500.0,0.00054794,120]
[321431384,1712184658951,-500.0,0.00054794,120]
[321431385,1712184658961,-500.0,0.00054794,120]
[321431386,1712184658971,-500.0,0.00054794,120]
[321431387,1712184658981,-440.72411263,0.00054794,120]
[321431388,1712184658990,-963.82,0.00054794,120]
[321431389,1712184659001,-303.39878205,0.00054794,120]
[321431390,1712184659011,-500.0,0.00054794,120]
[321431391,1712184659022,-730.5,0.00054794,120]
[321431392,1712184659032,-872.43,0.00054794,120]
[321431393,1712184659042,-505.56110231,0.00054794,120]
[321431394,1712184659052,-500.0,0.00054794,120]
[321431395,1712184659062,-2401.85,0.00054794,120]
[321431396,1712184659072,-507.86166372,0.00054794,120]
[321431397,1712184659082,-500.0,0.00054794,120]
[321431398,1712184659092,-532.18,0.00054794,120]
[321431399,1712184659103,-500.0,0.00054794,120]
[321431400,1712184659113,-4374.57,0.00054794,120]
[321431401,1712184659122,-7192.17,0.00054794,120]
[321431402,1712184659131,-7428.5,0.00054794,120]
[321431403,1712184659142,-500.0,0.00054794,120]
[321431404,1712184659151,-509.22890575,0.00054794,7]
[321431405,1712184659165,-2073.31,0.00054794,120]
[321431406,1712184659175,-559.19,0.00054794,120]
[321431407,1712184659185,-23235.85,0.00054794,120]
[321431408,1712184659195,-500.0,0.00054794,120]
[321431409,1712184659205,-534.48868957,0.00054794,120]
[321431410,1712184659216,-500.0,0.00054794,120]
[321431411,1712184659226,-743.85,0.00054794,120]
[321431412,1712184659236,-865.07,0.00054794,120]
[321431413,1712184659245,-504.27181023,0.00054794,120]
[321431414,1712184659255,-507.90938434,0.00054794,120]
[321431415,1712184659267,-1703.32,0.00054794,120]
[321431416,1712184659279,-1614.74,0.00054794,120]
[321431417,1712184659292,-4317.35,0.00054794,120]
[321431418,1712184659305,-3041.57,0.00054794,120]
[321431419,1712184659316,-1938.19,0.00054794,120]
[321431420,1712184659326,-505.40498685,0.00054794,120]
[321431421,1712184659336,-500.0,0.00054794,120]
[321431422,1712184659346,-524.39554877,0.00054794,120]
[321431423,1712184659355,-500.0,0.00054794,120]
[321431424,1712184659365,-1164.81,0.00054794,120]
[321431425,1712184659375,-500.0,0.00054794,120]
[321431426,1712184659384,-1164.81,0.00054794,120]
[321431427,1712184659395,-1225.81,0.00054794,120]
[321431428,1712184659408,-1164.81,0.00054794,120]
[321431429,1712184659417,-1164.81,0.00054794,120]
[321431430,1712184659427,-1164.81,0.00054794,120]
[321431431,1712184659436,-1164.81,0.00054794,120]
[321431432,1712184659445,-500.0,0.00054794,120]
[321431433,1712184659455,-1164.81,0.00054794,120]
[321431434,1712184659464,-1164.81,0.00054794,120]
[321431435,1712184659475,-718.8,0.00054794,120]
[321431436,1712184659484,-500.0,0.00054794,120]
[321431437,1712184659493,-500.0,0.00054794,120]
[321431438,1712184659502,-500.0,0.00054794,120]
[321431439,1712184659512,-1164.81,0.00054794,120]
[321431440,1712184659522,-1164.81,0.00054794,120]
[321431441,1712184659531,-429.48758441,0.00054794,120]
[321431442,1712184659541,-1164.81,0.00054794,120]
[321431443,1712184659552,-1164.81,0.00054794,120]
[321431444,1712184659563,-500.0,0.00054794,120]
[321431445,1712184659572,-1164.81,0.00054794,120]
[321431446,1712184659582,-1164.81,0.00054794,120]
[321431447,1712184659594,-1164.81,0.00054794,120]
[321431448,1712184659604,-500.0,0.00054794,120]
[321431449,1712184659615,-1164.81,0.00054794,120]
[321431450,1712184659626,-500.0,0.00054794,120]
[321431451,1712184659635,-690.37,0.00054794,120]
[321431452,1712184659645,-1164.81,0.00054794,120]
[321431453,1712184659655,-500.0,0.00054794,120]
[321431454,1712184659665,-500.0,0.00054794,120]
[321431455,1712184659674,-1164.81,0.00054794,120]
[321431456,1712184659683,-1164.81,0.00054794,120]
[321431457,1712184659692,-1164.81,0.00054794,120]
[321431458,1712184659701,-1048.4,0.00054794,120]
[321431459,1712184659711,-1164.81,0.00054794,120]
[321431460,1712184659720,-500.0,0.00054794,120]
[321431461,1712184659729,-1164.81,0.00054794,120]
[321431462,1712184659738,-1164.81,0.00054794,120]
[321431463,1712184659747,-654.19,0.00054794,120]
[321431464,1712184659756,-500.0,0.00054794,120]
[321431465,1712184659765,-1164.82768089,0.00054794,120]
[321431466,1712184659774,-500.0,0.00054794,120]
[321431467,1712184659783,-2690.54,0.00054794,120]
[321431468,1712184659792,-500.0,0.00054794,120]
[321431469,1712184659801,-512.32267161,0.00054794,120]
[321431470,1712184659810,-500.0,0.00054794,120]
[321431471,1712184659819,-4397.95,0.00054794,120]
[321431472,1712184659828,-2998.67,0.00054794,120]
[321431473,1712184659837,-500.0,0.00054794,120]
[321431474,1712184659846,-500.0,0.00054794,120]
[321431475,1712184659856,-500.0,0.00054794,120]
[321431476,1712184659865,-500.0,0.00054794,120]
[321431477,1712184659875,-2768.66,0.00054794,120]
[321431478,1712184659884,-8698.46,0.00054794,120]
[321431479,1712184659893,-1385.21,0.00054794,120]
[321431480,1712184659902,-500.0,0.00054794,120]
[321431481,1712184659913,-1332.76,0.00054794,120]
[321431482,1712184659923,-500.0,0.00054794,120]
[321431483,1712184659933,-1960.36,0.00054794,120]
[321431484,1712184659944,-500.0,0.00054794,120]
[321431485,1712184660033,-507.79268836,0.00054794,120]
[321431486,1712184660043,-757.35,0.00054794,120]
[321431487,1712184660052,-500.0,0.00054794,120]
[321431488,1712184660062,-507.79816334,0.00054794,120]
[321431489,1712184660071,-906.33,0.00054794,120]
[321431490,1712184660081,-500.0,0.00054794,120]
[321431491,1712184660090,-1634.63,0.00054794,120]
[321431492,1712184660100,-500.0,0.00054794,120]
[321431493,1712184660109,-503.90686109,0.00054794,120]
[321431494,1712184660119,-3600.93,0.00054794,120]
[321431495,1712184660129,-731.15,0.00054794,120]
[321431496,1712184660137,-5728.88,0.00054794,120]
[321431497,1712184660148,-150.0,0.00054794,120]
[321431498,1712184660159,-1102.91,0.00054794,120]
[321431499,1712184660168,-1828.14,0.00054794,21]
[321431500,1712184660177,-500.0,0.00054794,120]
[321431501,1712184660187,-500.0,0.00054794,120]
[321431502,1712184660197,-500.0,0.00054794,120]
[321431503,1712184660206,-500.0,0.00054794,120]
[321431504,1712184660216,-2718.48,0.00054794,120]
[321431505,1712184660225,-500.0,0.00054794,120]
[321431506,1712184660234,-1816.51,0.00054794,120]
[321431507,1712184660243,-1719.33,0.00054794,7]
[321431508,1712184660253,-500.0,0.00054794,120]
[321431509,1712184660263,-567.45,0.00054794,120]
[321431510,1712184660272,-500.0,0.00054794,120]
[321431511,1712184660282,-5651.64,0.00054794,120]
[321431512,1712184660295,-500.0,0.00054794,120]
[321431513,1712184660304,-500.0,0.00054794,120]
[321431514,1712184660313,-500.0,0.00054794,120]
[321431515,1712184660324,-5000.0,0.00054794,120]
[321431516,1712184660334,-500.0,0.00054794,120]
[321431517,1712184660343,-1653.19,0.00054794,120]
[321431518,1712184660353,-500.0,0.00054794,120]
[321431519,1712184660362,-1000.0,0.00054794,120]
[321431520,1712184660372,-500.0,0.00054794,120]
[321431521,1712184660382,-1269.01,0.00054794,120]
[321431522,1712184660391,-15337.67,0.00054794,120]
[321431523,1712184660400,-2368.29,0.00054794,120]
[321431524,1712184660411,-3160.42,0.00054794,120]
[321431525,1712184660421,-1708.51,0.00054794,120]
[321431526,1712184660430,-2123.24,0.00054794,120]
[321431527,1712184660439,-500.0,0.00054794,120]
[321431528,1712184660448,-570.44995802,0.00054794,120]
[321431529,1712184660458,-500.0,0.00054794,120]
[321431530,1712184660467,-504.97131546,0.00054794,120]
[321431531,1712184660476,-1000.0,0.00054794,60]
[321431532,1712184660485,-503.5870309,0.00054794,120]
[321431533,1712184660494,-512.57048255,0.00054794,120]
[321431534,1712184660504,-500.0,0.00054794,120]
[321431535,1712184660513,-779.43,0.00054794,120]
[321431536,1712184660523,-500.0,0.00054794,120]
[321431537,1712184660532,-500.0,0.00054794,120]
[321431538,1712184660541,-500.0,0.00054794,120]
[321431539,1712184660551,-505.95877875,0.00054794,120]
[321431540,1712184660560,-513.82404215,0.00054794,120]
[321431541,1712184660570,-6016.54,0.00054794,120]
[321431542,1712184660579,-18834.36,0.00054794,120]
[321431543,1712184660589,-500.0,0.00054794,120]
[321431544,1712184660599,-594.67,0.00054794,120]
[321431545,1712184660608,-500.0,0.00054794,120]
[321431546,1712184660618,-500.0,0.00054794,120]
[321431547,1712184660627,-799.11,0.00054794,120]
[321431548,1712184660636,-500.0,0.00054794,120]
[321431549,1712184660646,-4377.13,0.00054794,120]
[321431550,1712184660656,-500.0,0.00054794,120]
[321431551,1712184660665,-1109.31,0.00054794,120]
[321431552,1712184660675,-500.0,0.00054794,120]
[321431553,1712184660684,-1703.09,0.00054794,120]
[321431554,1712184660693,-500.0,0.00054794,120]
[321431555,1712184660703,-500.0,0.00054794,120]
[321431556,1712184660712,-1759.09,0.00054794,120]
[321431557,1712184660722,-1101.57,0.00054794,120]
[321431558,1712184660732,-4469.47,0.00054794,120]
[321431559,1712184660741,-500.0,0.00054794,120]
[321431560,1712184660751,-500.0,0.00054794,120]
[321431561,1712184660762,-1829.69,0.00054794,120]
[321431562,1712184660771,-500.0,0.00054794,120]
[321431563,1712184660780,-500.0,0.00054794,120]
[321431564,1712184660789,-500.0,0.00054794,120]
[321431565,1712184660801,-2417.36,0.00054794,120]
[321431566,1712184660812,-500.0,0.00054794,120]
[321431567,1712184660822,-1221.88,0.00054794,120]
[321431568,1712184660832,-820.07148275,0.00054794,3]
[321431569,1712184660843,-500.0,0.00054794,120]
[321431570,1712184660853,-505.15470122,0.00054794,120]
[321431571,1712184660863,-500.0,0.00054794,120]
[321431572,1712184660874,-2587.56,0.00054794,120]
[321431573,1712184660883,-165.99322339,0.00054794,120]
[321431574,1712184660892,-314.24049412,0.00054794,120]
[321431575,1712184660901,-512.16,0.00054794,120]
[321431576,1712184660912,-2018.37,0.00054794,120]
[321431577,1712184660921,-4108.23,0.00054794,120]
[321431578,1712184660930,-2932.33,0.00054794,120]
[321431579,1712184660939,-729.33,0.00054794,120]
[321431580,1712184660948,-500.0,0.00054794,120]
[321431581,1712184660957,-500.0,0.00054794,120]
[321431582,1712184660965,-3736.26,0.00054794,120]
[321431583,1712184660974,-500.0,0.00054794,120]
[321431584,1712184660984,-500.0,0.00054794,120]
[321431585,1712184660993,-500.0,0.00054794,120]
[321431586,1712184661002,-1147.23,0.00054794,120]
[321431587,1712184661011,-500.0,0.00054794,120]
[321431588,1712184661021,-672.33,0.00054794,120]
[321431589,1712184661030,-502.37099176,0.00054794,120]
[321431590,1712184661040,-500.0,0.00054794,120]
[321431591,1712184661049,-1714.24,0.00054794,120]
[321431592,1712184661059,-1978.76,0.00054794,120]
[321431593,1712184661068,-3847.59,0.00054794,120]
[321431594,1712184661076,-500.0,0.00054794,120]
[321431595,1712184661086,-1367.26,0.00054794,120]
[321431596,1712184661095,-500.0,0.00054794,120]
[321431597,1712184661104,-500.0,0.00054794,120]
[321431598,1712184661113,-3764.89,0.00054794,120]
[321431599,1712184661122,-500.0,0.00054794,120]
[321431600,1712184661131,-2714.19,0.00054794,120]
[321431601,1712184661140,-960.97,0.00054794,120]
[321431602,1712184661150,-5557.68,0.00054794,120]
[321431603,1712184661162,-500.0,0.00054794,120]
[321431604,1712184661171,-500.0,0.00054794,120]
[321431605,1712184661179,-2615.01,0.00054794,120]
[321431606,1712184661189,-500.0,0.00054794,120]
[321431607,1712184661197,-500.0,0.00054794,120]
[321431608,1712184661207,-1037.04,0.00054794,120]
[321431609,1712184661217,-3847.59,0.00054794,120]
[321431610,1712184661226,-3847.59,0.00054794,120]
[321431611,1712184661235,-500.0,0.00054794,120]
[321431612,1712184661244,-3847.59,0.00054794,120]
[321431613,1712184661253,-352.83566176,0.00054794,2]
[321431614,1712184661263,-3847.59,0.00054794,120]
[321431615,1712184661273,-3847.59,0.00054794,120]
[321431616,1712184661283,-500.0,0.00054794,120]
[321431617,1712184661298,-510.76,0.00054794,120]
[321431618,1712184661307,-3847.59,0.00054794,120]
[321431619,1712184661317,-3847.59,0.00054794,120]
[321431620,1712184661326,-500.0,0.00054794,120]
[321431621,1712184661337,-500.0,0.00054794,120]
[321431622,1712184661346,-3260.72,0.00054794,120]
[321431623,1712184661355,-3847.59,0.00054794,120]
[321431624,1712184661366,-3847.59,0.00054794,120]
[321431625,1712184661375,-3847.59,0.00054794,120]
[321431626,1712184661384,-1985.0,0.00054794,120]
[321431627,1712184661393,-3847.59,0.00054794,120]
[321431628,1712184661403,-503.01381616,0.00054794,120]
[321431629,1712184661414,-984.67,0.00054794,120]
[321431630,1712184661423,-500.0,0.00054794,120]
[321431631,1712184661432,-3847.59,0.00054794,120]
[321431632,1712184661441,-3847.59,0.00054794,120]
[321431633,1712184661450,-3847.59,0.00054794,120]
[321431634,1712184661460,-3847.59,0.00054794,120]
[321431635,1712184661469,-3847.59,0.00054794,120]
[321431636,1712184661478,-2725.96,0.00054794,120]
[321431637,1712184661488,-500.0,0.00054794,2]
[321431638,1712184661497,-3847.59,0.00054794,120]
[321431639,1712184661506,-505.50190729,0.00054794,120]
[321431640,1712184661515,-3847.59,0.00054794,120]
[321431641,1712184661525,-3847.59,0.00054794,120]
[321431642,1712184661535,-3847.59,0.00054794,120]
[321431643,1712184661544,-500.0,0.00054794,120]
[321431644,1712184661554,-3847.59,0.00054794,120]
[321431645,1712184661564,-3847.59,0.00054794,120]
[321431646,1712184661575,-3847.80118821,0.00054794,120]
[321431647,1712184661584,-500.0,0.00054794,120]
[321431648,1712184661593,-2998.29,0.00054794,120]
[321431649,1712184661602,-2253.41,0.00054794,120]
[321431650,1712184661612,-1020.9,0.00054794,120]
[321431651,1712184661621,-500.0,0.00054794,120]
[321431652,1712184661631,-559.74,0.00054794,120]
[321431653,1712184661642,-617.04,0.00054794,120]
[321431654,1712184661652,-1182.6,0.00054794,120]
[321431655,1712184661664,-504.15147546,0.00054794,120]
[321431656,1712184661674,-890.32,0.00054794,120]
[321431657,1712184661683,-500.0,0.00054794,120]
[321431658,1712184661693,-500.0,0.00054794,120]
[321431659,1712184661703,-533.89948382,0.00054794,120]
[321431660,1712184661713,-2475.18,0.00054794,120]
[321431661,1712184661722,-506.45,0.00054794,120]
[321431662,1712184661733,-502.03347917,0.00054794,120]
[321431663,1712184661742,-500.0,0.00054795,30]
[321431664,1712184661752,-421.08106086,0.00054795,120]
[321431665,1712184661762,-150.0,0.00054795,120]
[321431666,1712184661772,-191.47483542,0.00054795,120]
[321431667,1712184661782,-150.0,0.00054795,120]
[321431668,1712184661791,-150.0,0.00054795,120]
[321431669,1712184661801,-150.0,0.00054795,120]
[321431670,1712184661811,-150.0,0.00054795,120]
[321431671,1712184661820,-150.0,0.00054795,120]
[321431672,1712184661830,-150.0,0.00054795,120]
[321431673,1712184661841,-292.06712577,0.00054795,120]
[321431674,1712184661851,-187.5,0.00054795,2]
[321431675,1712184661860,-500.0,0.00054795,2]
[321431676,1712184661870,-500.0,0.00054795,2]
[321431677,1712184661880,-500.0,0.00054795,2]
[321431678,1712184661890,-500.0,0.00054795,2]
[321431679,1712184661899,-500.0,0.00054795,2]